Cogmind - Beta 17 @@@ ROGUE MODE // 2026.07.28 @ 21:58:16 Player: JP Result: Self-destructed Performance ------------- Evolutions (2) 1000 Regions Visited (3) 600 Robots Destroyed (9) 45 Value Destroyed (270) 270 Prototype IDs (0) 0 Alien Tech Used (0) 0 Bonus (0) 0 TOTAL SCORE: 1915 Bonus ------- None Cogmind --------- Core Integrity 522/550 Matter 5/300 Energy 100/100 System Corruption 1% Temperature Cool (0) Movement Rolling (110) Location -8/Materials Parts ------- > --- POWER (1) -------- Subdweller Power Source > --- PROPULSION (3) --- Subdweller Monowheel Subdweller Monowheel > --- UTILITY (5) ------ Medium Storage Unit Reaction Control System Utility Shielding Utility Shielding > --- WEAPON (2) ------- Subdweller Machine Gun Subdweller Machine Gun > --- INVENTORY (10) --- Wheel Medium Storage Unit Subdweller Optics EM Pulse Gun Subdweller Laser Pulse Rifle Scrap Shield Fragment (46) Scrap Shield Fragment (19) Peak State ------------ > --- POWER ------------ Subdweller Power Source > --- PROPULSION ------- Subdweller Monowheel Subdweller Monowheel > --- UTILITY ---------- Medium Storage Unit Reaction Control System Utility Shielding Utility Shielding > --- WEAPON ----------- Subdweller Machine Gun Subdweller Machine Gun > --- INVENTORY -------- Wheel Medium Storage Unit Subdweller Optics EM Pulse Gun Subdweller Laser Scrap Shield Fragment Scrap Shield Fragment [Rating: 17] Favorites ----------- Power Subdweller Power Source Engine Subdweller Power Source Propulsion Subdweller Monowheel Treads Light Treads Leg Aluminum Leg Wheel Subdweller Monowheel Utility Medium Storage Unit Device Reaction Control System Storage Medium Storage Unit Processor Signal Interpreter Protection Utility Shielding Weapon Subdweller Machine Gun Ballistic Gun Subdweller Machine Gun Launcher Grenade Launcher Build | -11 -10 -10 -8 ------- Run | Yrd Mat Sub Mat Slots Evolved 4 | . . . 4 Power . | . . . . Propulsion 1 | . . . 1 Utility 3 | . . . 3 Weapon . | . . . . Parts Attached 25 | 6 4 13 2 Power 5 | 1 . 4 . Engine 5 | 1 . 4 . Core . | . . . . Reactor . | . . . . Propulsion 6 | 2 . 4 . Treads 2 | . . 2 . Leg 2 | 2 . . . Wheel 2 | . . 2 . Hover . | . . . . Flight . | . . . . Utility 8 | 1 4 1 2 Device 1 | . . . 1 Storage 2 | 1 1 . . Processor 1 | . 1 . . Hackware . | . . . . Protection 4 | . 2 1 1 Artifact . | . . . . Weapon 6 | 2 . 4 . Energy Gun . | . . . . Energy Cannon . | . . . . Ballistic Gun 5 | 2 . 3 . Ballistic Cannon . | . . . . Launcher 1 | . . 1 . Special Weapon . | . . . . Impact Weapon . | . . . . Slashing Weapon . | . . . . Piercing Weapon . | . . . . Special Melee Weapon . | . . . . Unidentified Prototypes . | . . . . Parts Lost 10 | . . 10 . Power 3 | . . 3 . Propulsion 3 | . . 3 . Utility 1 | . . 1 . Weapon 3 | . . 3 . Highest Loss Streak 5 | . . 5 . To Critical Strikes . | . . . . Average Backups 6 | 3 9 6 5 Power . | . 1 . . Propulsion 1 | 2 3 1 1 Utility 2 | . 2 2 2 Weapon 1 | . 1 1 2 Tool/Special . | . . . . Unused Backups 6 | . 1 . 5 Power . | . . . . Propulsion 2 | . 1 . 1 Utility 2 | . . . 2 Weapon 2 | . . . 2 Tool/Special . | . . . . Average Slot Usage (%) 95 | . 98 97 77 Engine 12 | . 14 12 9 Treads 4 | . . 5 . Leg 9 | . 28 7 . Wheel 13 | . . 14 18 Storage 13 | . 15 14 9 Protection 13 | . 11 13 16 Ballistic Gun 25 | . 28 26 18 Peak Build Rating 17 | 6 8 13 17 Average Rating 10 | 4 7 10 16 On Entrance 6 | . 6 7 13 Avg Prop Armor Cover (%) . | . . . . Naked Turns . | . . . . Heaviest Build 26 | 13 21 24 26 Greatest Support 40 | 20 20 40 40 Greatest Overweight (x) 1 | . 1 1 . Average Overweight (x) . | . . . . Largest Inventory Capacity 10 | 8 10 10 10 Average Capacity 9 | 6 9 10 10 Most Carried 10 | 6 10 10 8 Average Carried 7 | 4 9 8 7 Final Capacity 10 | 8 10 10 10 Final Carried 9 | 6 9 8 8 Class Distribution -------------------- 53% | Mutant 46% | Scavenger-Mutant Dominant Class ---------------- Mutant | -10/Materials Scavenger-Mutant | -10/Subcaves Scavenger-Mutant | -8/Materials Resources | -11 -10 -10 -8 ----------- Run | Yrd Mat Sub Mat Matter Collected 386 | 115 . 271 . Remotely . | . . . . Salvage Created 277 | . . 277 . Parts 21 | . . 21 . Haulers Intercepted . | . . . . Recyclers Shooed . | . . . . Parts Field Recycled . | . . . . Retrieved Matter . | . . . . Parts Self-Destructed 2 | . . 2 . Prevented . | . . . . Parts Restored . | . . . . Kills | -11 -10 -10 -8 ------- Run | Yrd Mat Sub Mat Combat Hostiles Destroyed 9 | . . 9 . Guns 9 | . . 9 . Classes Destroyed 2 | . . 2 . Swarmer 3 | . . 3 . Subdweller 6 | . . 6 . Best Kill Streak 3 | . . 3 . Combat Bots Only 3 | . . 3 . Max Kills in Single Turn 2 | . . 2 . Gunslinging . | . . . . Exploded . | . . . . Melee . | . . . . Uniques/NPCs Destroyed . | . . . . Combat | -11 -10 -10 -8 -------- Run | Yrd Mat Sub Mat Hostile Shots Fired 106 | . . 95 11 Missed 32 | . . 27 5 Hits 74 | . . 68 6 Projectile 74 | . . 68 6 Critical Strikes 2 | . . 1 1 Damage Taken 1319 | . . 1251 68 Core 230 | . . 202 28 Absorbed by Shields . | . . . . Redirected to Shielding 10 | . . 10 . Core Remaining (%) 59 | 100 . 19 . Volleys Fired 67 | . . 65 2 Largest 2 | . . 2 2 Hottest 60 | . . 60 60 Shots Fired 123 | . . 119 4 Gun 120 | . . 116 4 Cannon . | . . . . Launcher 3 | . . 3 . Special . | . . . . Kinetic 120 | . . 116 4 Thermal . | . . . . Explosive 3 | . . 3 . Electromagnetic . | . . . . Robot Hit Streak 10 | . . 10 . Robot Miss Streak 5 | . . 5 4 Penetration Max . | . . . . Secondary Targets . | . . . . Shots Hit Robots 54 | . . 54 . Core Hits 21 | . . 21 . Critical Kills . | . . . . Critical Parts Destroyed . | . . . . Critical Strikes . | . . . . Melee Attacks . | . . . . Impact . | . . . . Slashing . | . . . . Piercing . | . . . . Sneak Attacks . | . . . . Combat Hostiles . | . . . . Follow-up Attacks . | . . . . Damage Inflicted 880 | . . 863 17 Guns 709 | . . 709 . Cannons . | . . . . Explosions 154 | . . 154 . Melee . | . . . . Ramming 17 | . . . 17 Kinetic 709 | . . 709 . Thermal . | . . . . Explosive 154 | . . 154 . Electromagnetic . | . . . . Impact . | . . . . Slashing . | . . . . Piercing . | . . . . Highest Corruption 1 | . . . 1 Average Corruption 1 | . . . 1 Corruption Purged . | . . . . Corruption Blocked . | . . . . Overload Shots . | . . . . Overflow Damage . | . . . . Projectiles . | . . . . Explosions . | . . . . Melee . | . . . . Knockbacks . | . . . . Impact . | . . . . Kinetic . | . . . . Secondary . | . . . . Self-Inflicted Damage 8 | . . . 8 Shots . | . . . . Rammed 2 | . . . 2 Targets Rammed 2 | . . . 2 Kicked . | . . . . Crushed . | . . . . Highest Temperature . | . . . . Average Temperature . | . . . . Received Heat Transfer 174 | . . 174 . Siege Activations . | . . . . Martial Activations . | . . . . Shielding Activations . | . . . . Robots Disrupted . | . . . . Combat Hostiles . | . . . . Robots Corrupted . | . . . . Combat Hostiles . | . . . . Parts Fried . | . . . . Impact Corruptions . | . . . . Robots Melted . | . . . . Combat Hostiles . | . . . . Parts Melted 1 | . . 1 . Heat Transferred . | . . . . Parts Sabotaged . | . . . . Parts Stolen . | . . . . Parts Stripped . | . . . . Power Chain Reactions . | . . . . Alert | -11 -10 -10 -8 ------- Run | Yrd Mat Sub Mat Maximum Alert Level . | . . . . Low Security (%) 100 | 100 100 . 100 Level 1 . | . . . . Level 2 . | . . . . Level 3 . | . . . . Level 4 . | . . . . Level 5 . | . . . . High Security . | . . . . Max Security . | . . . . Peak Influence 5 | . 5 . 1 Initial . | . . . . Average . | . . . . Influence Increases 91 | . 5 85 1 Destroy 0b10 Robot/C 60 | . . 60 . Destroy Leader 10 | . . 10 . Successful Hack 5 | . 5 . . Destroy Structure 1 | . . . 1 Lose Combat Pursuer 15 | . . 15 . Influence Decreases 91 | . 5 85 1 Time Decay 56 | . 5 50 1 Lost Part 35 | . . 35 . Squads Dispatched . | . . . . Investigation . | . . . . Extermination . | . . . . Reinforcement . | . . . . Assault . | . . . . Garrison . | . . . . Intercept . | . . . . Searches Triggered . | . . . . Construction Impeded . | . . . . Haulers Reinforced . | . . . . Active Scanning Responses . | . . . . Cargo Convoy Interrupts . | . . . . Stealth | -11 -10 -10 -8 --------- Run | Yrd Mat Sub Mat Distress Signals 1 | . . . 1 Communications Jammed . | . . . . Distress Signals . | . . . . Times Spotted 18 | . . 10 8 Peak Tracking Total 8 | . . 3 8 Tactical Retreats 1 | . . 1 . Traps | -11 -10 -10 -8 ------- Run | Yrd Mat Sub Mat Traps Triggered . | . . . . Indirectly . | . . . . Trap Hack Attempts . | . . . . Triggered . | . . . . Disarmed . | . . . . Reprogrammed . | . . . . Reused . | . . . . Traps Extracted . | . . . . Installed . | . . . . Triggered . | . . . . Machines | -11 -10 -10 -8 ---------- Run | Yrd Mat Sub Mat Machines Disabled . | . . . . Max in Single Turn . | . . . . Machines Repaired . | . . . . Machines Dismantled . | . . . . Machines Sabotaged . | . . . . Overloaded Fab Kills . | . . . . Hacking | -11 -10 -10 -8 --------- Run | Yrd Mat Sub Mat Machines Accessed 3 | . 2 . 1 Terminals 2 | . 2 . . Fabricators . | . . . . Repair Stations . | . . . . Recycling Units . | . . . . Scanalyzers 1 | . . . 1 Garrison Access . | . . . . Total Hacks 7 | . 5 . 2 Successful 4 | . 4 . . Failed 3 | . 1 . 2 Catastrophic 1 | . 1 . . Database Lockouts . | . . . . Manual 3 | . 3 . . Terminals 5 | . 5 . . Fabricators . | . . . . Repair Stations . | . . . . Recycling Units . | . . . . Scanalyzers 2 | . . . 2 Garrison Access . | . . . . Terminal Hacks 2 | . 2 . . Record 2 | . 2 . . Fabricator Hacks . | . . . . Repair Station Hacks . | . . . . Recycling Unit Hacks . | . . . . Scanalyzer . | . . . . Garrison Access Hacks . | . . . . Unauthorized Hacks 2 | . 2 . . Terminals 2 | . 2 . . Botnet 2 | . 2 . . Fabricators . | . . . . Repair Stations . | . . . . Recycling Units . | . . . . Scanalyzers . | . . . . Garrison Access . | . . . . Data Cores Recovered . | . . . . Used . | . . . . Hacking Detections 3 | . 2 . 1 Full Trace Events . | . . . . Feedback Events . | . . . . Feedback Blocked . | . . . . Robot Schematics Acquired . | . . . . Robots Built . | . . . . Authchips . | . . . . Time . | . . . . Total Robot Build Rating . | . . . . Part Schematics Acquired . | . . . . Parts Built . | . . . . Authchips . | . . . . Time . | . . . . Total Part Build Rating . | . . . . Part Studies Acquired . | . . . . Parts Repaired . | . . . . Time . | . . . . Parts Recycled . | . . . . Recycled Matter . | . . . . Retrieved Matter . | . . . . Retrieved Components . | . . . . Parts Scanalyzed . | . . . . Part Schematics Acquired . | . . . . Parts Damaged . | . . . . Bothacking | -11 -10 -10 -8 ------------ Run | Yrd Mat Sub Mat Used RIF Installer . | . . . . Robots Hacked . | . . . . Non-combat . | . . . . Combat . | . . . . Robot Hacks Applied . | . . . . Relay Couplers Released . | . . . . Fabnet Peak Effective % . | . . . . Robots Rewired . | . . . . Allies Hacked . | . . . . Hacks Repelled . | . . . . Allies | -11 -10 -10 -8 -------- Run | Yrd Mat Sub Mat Total Allies . | . . . . Largest Group . | . . . . Highest-Rated Group . | . . . . Highest-Rated Ally . | . . . . Total Orders . | . . . . Ally Attacks . | . . . . Total Damage . | . . . . Kills . | . . . . Allies Corrupted . | . . . . Allies Melted . | . . . . Intel | -11 -10 -10 -8 ------- Run | Yrd Mat Sub Mat Active Infowar (turns) . | . . . . Robot Analysis Total . | . . . . Derelict Logs Recovered 1 | . . 1 . Drone Launches . | . . . . Drone Recoveries . | . . . . Exploration | -11 -10 -10 -8 ------------- Run | Yrd Mat Sub Mat Turns Passed 1149 | 68 125 876 80 Spaces Moved 705 | 47 80 521 57 Core 6 | 6 . . . Treads 65 | . . 65 . Legs 225 | 41 80 104 . Wheels 409 | . . 352 57 Hover . | . . . . Flight . | . . . . Fastest Speed 50 | 50 120 110 110 Average Speed 124 | 111 139 124 110 Slowest Speed 240 | 120 190 240 110 Overloaded Moves . | . . . . Propulsion Burnouts . | . . . . Robots Hopped . | . . . . Potential Cave-ins . | . . . . Cave-ins Triggered . | . . . . Exploration Rate (%) 13 | 4 15 21 12 Regions Visited 3 Branch Regions 1 Pre-discovered Areas 1 | . . 1 . Known Exits Taken 1 | . 1 . . Unknown Exits Taken 2 | 1 . 1 . Scrap Searched . | . . . . Spaces Dug . | . . . . Terrain Destroyed 14 | . . 13 1 Melee . | . . . . Projectile 1 | . . . 1 AOE 13 | . . 13 . Terrain Rammed . | . . . . Walls Destroyed . | . . . . Machines Disabled . | . . . . Actions | -11 -10 -10 -8 --------- Run | Yrd Mat Sub Mat Total 863 | 61 95 638 69 Wait 24 | . . 19 5 Move 702 | 46 79 520 57 Hop . | . . . . Pick Up 26 | 9 6 10 1 Fast Attach 10 | 3 3 3 1 Attach 17 | 3 2 11 1 Detach 1 | . . 1 . Swap 2 | . . 2 . Drop 9 | . 5 4 . Fire 67 | . . 65 2 Melee . | . . . . Ram 2 | . . . 2 Kick . | . . . . Crush . | . . . . Escape Stasis . | . . . . Rewire 3 | . . 3 . Trap . | . . . . Miscellaneous . | . . . . Route ------- -11/Scrapyard -10/Materials -10/Subcaves -8/Materials History --------- Turn | Location | Event 6 | -11/Scrapyard | Discovered new exit (range 16) 69 | -11/Scrapyard | Entered Materials 169 | -10/Materials | Discovered new exit (range 11) 192 | -10/Materials | Identified exit to Subcaves 194 | -10/Materials | Entered Subcaves 227 | -10/Subcaves | Shifting Twisted Machinery released Riot Gun 308 | -10/Subcaves | Build established: Mutant 441 | -10/Subcaves | Core integrity fell below 50% 459 | -10/Subcaves | Lost 5 parts (2p2n1w) 496 | -10/Subcaves | Learned location of Storage (-8) 578 | -10/Subcaves | Core integrity fell below 20% 594 | -10/Subcaves | Lost 3 parts (1p1n1w) 913 | -10/Subcaves | Build established: Scavenger-Mutant 1065 | -10/Subcaves | Discovered new exit (range 6) 1070 | -10/Subcaves | Entered Materials 1070 | -8/Materials | Evolved 4 slots: Propulsion x1, Utility x3 1150 | -8/Materials | Self-destructed Last Messages --------------- 00962_ Subatomizers dissect the Disposable Heat Sink. 00964_ Sub. Power Source shoots sparks and powers down. 00974_ Subatomizers dissect the Disposable Heat Sink. 01064_ I6-JJ1(u) builds Twisted Machinery. 01065_ EXIT=FOUND PARAMETERS=PROPULSION+1,UTILITY+3 LOCATION=UNKNOWN GOAL=ESCAPE 01085_ Acquired Reaction Control System. 01088_ Connecting with Scanalyzer... 01088_ Current location identified: Materials 01106_ U-05 Engineer builds a Wall. 01128_ Slammed into W-25 Informer. 01128_ Destabilizing: System corrupted (+1). 01131_ U-05 Engineer lays Concrete. 01141_ Acquired Pulse Rifle. 01149_ Slammed into S-10 Pest. Map ----- +----------------------------------------------------+ | ????????????????????????????????????????????????? | | ##############??????????????????????????????????? | | #??????????????????????????????????? | | #??????????????????????????????????? | | #??????????????????????????????????? | | #??????????????????????????????????? | | #??????????????????????????????????? | | [[ ########????????????????????????????? | | [ # ?????????????????????????????? | | [ !!! # """"?????????????????????????????? | | !!! # """""?#??????????????????????????? | | !!! # """"" #??????????????????????????? | | + """"" ######?????????????????????? | | # """"" # ??? ?????????????????? | | ############ """"" #w ?????????????????? | | # ## """"" + """ ""???? ????????????? | | # "" ## # """ ""? ????????????? | | # """ """######+#### """ T" ?????????????? | | + """ S"#????# #??T "" ##?????????????? | | # """ #????# #### "" ""?????????????? | | # # ???# """ Y"?????????????? | | # ! # #u """ ""?????????????? | | # ## """ #??????????????? | | ############## # #??????????????? | | #????????????#?# sss #??????????????? | | #??????????????########@##### #??????????????? | | #???????????????????# s #????#??????????????? | | #???????????????????# !!#???????????????????? | | T???????????????????# !!#???????????????????? | | #???????????????????#! #???????????????????? | | #???????????????????#Y #???????????????????? | | ??????????????????? ! #???????????????????? | | ??????????????????#########???????????????????? | | ???????????????????????????????????????????????? | | ?????????????????????????????????????????????????? | | ?????????????????????????????????????????????????? | | ?????????????????????????????????????????????????? | | ?????????????????????????????????????????????????? | | ?????????????????????????????????????????????????? | | ?????????????????????????????????????????????????? | | ?????????????????????????????????????????????????? | | ?????????????????????????????????????????????????? | | ?????????????????????????????????????????????????? | | ?????????????????????????????????????????????????? | | ?????????????????????????????????????????????????? | | ?????????????????????????????????????????????????? | | ?????????????????????????????????????????????????? | | ?????????????????????????????????????????????????? | | ?????????????????????????????????????????????????? | | ?????????????????????????????????????????????????? | +----------------------------------------------------+ Best States ------------- Heat Dissipation 31 Energy Generation 15 Energy Capacity 250 Matter Stores 155 Matter Capacity 300 Sight Range 16 Terrain Scan Density 10 Armor Coverage 150 Utility Shielding 33 Evasion (%) 55 Recoil Reduction 2 Item Schematics ----------------- None Robot Schematics ------------------ None Fabricated ------------ Nothing Repaired ---------- Nothing Studied --------- None Alien Tech Used ----------------- None Achievements -------------- None Challenges ------------ None Game ------ Seed ChaosCloakBeacon Manual? 0 Play Time 00:11:33 Cumulative 45.0 hours Start 2026.07.28 @ 18:43:56 End 2026.07.28 @ 21:58:16 Sessions 3 Manual Loads 0 Difficulty Rogue Special Mode None Game No. 67 Rogue 67 Adventurer 0 Explorer 0 Win Type - Total 1 Types 1/0/0/0/0/0/0/0/0/0 Lore% 28 Gallery% 32 Achievement% 22 Wizard Run 0 Options --------- Layout 1 ASCII 0 Keyboard 0 Movement Mouse Keybinds 0 Fullscreen 2 Font 32/SmallcapsGlow Map View 50x35 Zoom Use 0% Tactical HUD 1 Map Filters NONE Filters NONE Steam 1 RUN: ee7f11b0-958d-4611-89a6-7d53fbd4da07